fUST/lending_fUST_20250228
["ID","MTS","AMOUNT","RATE_DAILY","PERIOD"]
[354787584,1740695439606,-500.0,0.00049315,120]
[354787585,1740695439616,-500.0,0.00049315,120]
[354787586,1740695439625,-500.0,0.00049315,120]
[354787587,1740695439634,-500.0,0.00049315,120]
[354787588,1740695439643,-500.0,0.00049315,120]
[354787589,1740695439652,-500.0,0.00049315,120]
[354787590,1740695439661,-500.0,0.00049315,120]
[354787591,1740695439670,-500.0,0.00049315,120]
[354787592,1740695439679,-500.0,0.00049315,120]
[354787593,1740695439688,-500.0,0.00049315,120]
[354787594,1740695439696,-500.0,0.00049315,120]
[354787595,1740695439705,-500.0,0.00049315,120]
[354787596,1740695439715,-500.0,0.00049315,120]
[354787597,1740695439724,-500.0,0.00049315,120]
[354787598,1740695439733,-500.0,0.00049315,120]
[354787599,1740695439742,-500.0,0.00049315,120]
[354787600,1740695439751,-573.94,0.00049315,120]
[354787601,1740695439759,-500.0,0.00049315,120]
[354787602,1740695439769,-500.0,0.00049315,120]
[354787603,1740695439778,-582.2,0.00049315,120]
[354787604,1740695439787,-500.0,0.00049315,120]
[354787605,1740695439796,-151.96,0.00049315,120]
[354787606,1740695439806,-500.0,0.00049315,120]
[354787607,1740695439815,-540.63249423,0.00049315,120]
[354787608,1740695439824,-500.0,0.00049315,120]
[354787609,1740695439833,-500.0,0.00049315,30]
[354787610,1740695439842,-500.0,0.00049315,120]
[354787611,1740695439852,-500.5069508,0.00049315,120]
[354787612,1740695439862,-500.0,0.00049315,120]
[354787613,1740695439871,-500.0,0.00049315,120]
[354787614,1740695439881,-500.0,0.00049315,120]
[354787615,1740695439890,-500.0,0.00049315,21]
[354787616,1740695439899,-500.0,0.00049315,120]
[354787617,1740695439909,-500.0,0.00049315,120]
[354787618,1740695439918,-500.0,0.00049315,6]
[354787619,1740695439929,-500.0,0.00049315,120]
[354787620,1740695439939,-154.92,0.00049315,30]
[354787621,1740695439949,-500.0,0.00049315,120]
[354787622,1740695439958,-594.58362424,0.00049488,2]
[354787623,1740695439969,-607.38225215,0.00049587,120]
[354787624,1740695439978,-500.0,0.00049587,120]
[354787625,1740695439987,-500.0,0.00049587,120]
[354787626,1740695439996,-500.0,0.00049587,120]
[354787627,1740695440006,-500.0,0.00049587,2]
[354787628,1740695440015,-500.0,0.00049587,120]
[354787629,1740695440024,-500.0,0.00049587,2]
[354787630,1740695440034,-500.0,0.00049587,120]
[354787631,1740695440043,-500.0,0.00049587,120]
[354787632,1740695440052,-500.0,0.00049587,2]
[354787633,1740695440061,-500.0,0.00049587,120]
[354787634,1740695440070,-500.0,0.00049587,120]
[354787635,1740695440080,-500.0,0.00049587,2]
[354787636,1740695440089,-500.0,0.00049587,120]
[354787637,1740695440099,-500.0,0.00049587,120]
[354787638,1740695440108,-500.0,0.00049587,2]
[354787640,1740695440117,-500.0,0.00049587,120]
[354787642,1740695440127,-500.0,0.00049587,2]
[354787643,1740695440137,-500.0,0.00049587,120]
[354787644,1740695440146,-500.0,0.00049587,120]
[354787645,1740695440155,-500.0,0.00049587,2]
[354787646,1740695440164,-500.0,0.00049587,120]
[354787647,1740695440174,-500.0,0.00049587,2]
[354787648,1740695440183,-500.0,0.00049587,120]
[354787649,1740695440192,-500.0,0.00049587,120]
[354787650,1740695440202,-500.0,0.00049587,2]
[354787651,1740695440211,-500.0,0.00049587,120]
[354787652,1740695440220,-500.0,0.00049587,2]
[354787653,1740695440230,-500.0,0.00049587,120]
[354787654,1740695440238,-500.0,0.00049587,120]
[354787657,1740695440248,-500.0,0.00049587,2]
[354787659,1740695440257,-500.0,0.00049587,2]
[354787661,1740695440267,-500.0,0.00049587,120]
[354787663,1740695440276,-500.0,0.00049587,2]
[354787665,1740695440286,-500.0,0.00049587,120]
[354787668,1740695440295,-500.0,0.00049587,2]
[354787671,1740695440305,-500.0,0.00049587,2]
[354787674,1740695440314,-500.0,0.00049587,120]
[354787676,1740695440324,-500.0,0.00049587,2]
[354787678,1740695440334,-500.0,0.00049587,2]
[354787680,1740695440345,-500.0,0.00049587,120]
[354787683,1740695440355,-500.0,0.00049587,2]
[354787685,1740695440365,-500.0,0.00049587,120]
[354787688,1740695440374,-500.0,0.00049587,120]
[354787691,1740695440384,-500.0,0.00049587,2]
[354787693,1740695440393,-500.0,0.00049587,2]
[354787695,1740695440403,-500.0,0.00049587,120]
[354787697,1740695440412,-500.0,0.00049587,2]
[354787699,1740695440422,-500.0,0.00049587,2]
[354787701,1740695440432,-203.68257034,0.00049587,2]
[354787703,1740695440442,-500.0,0.00049587,120]
[354787705,1740695440451,-500.0,0.00049587,2]
[354787707,1740695440461,-500.0,0.00049587,120]
[354787709,1740695440478,-500.0,0.00049587,2]
[354787711,1740695440487,-500.0,0.00049587,2]
[354787713,1740695440496,-500.0,0.00049587,2]
[354787715,1740695440505,-500.0,0.00049587,2]
[354787717,1740695440515,-500.0,0.00049587,2]
[354787719,1740695440524,-500.0,0.00049587,2]
[354787721,1740695440533,-500.0,0.00049587,2]
[354787723,1740695440542,-9455.4,0.00049588,120]
[354787725,1740695440552,-500.0,0.00049589,120]
[354787727,1740695440562,-500.0,0.00049589,120]
[354787729,1740695440572,-500.0,0.00049589,120]
[354787731,1740695440581,-500.0,0.00049589,120]
[354787733,1740695440591,-500.0,0.00049589,120]
[354787735,1740695440601,-500.0,0.00049589,120]
[354787738,1740695440611,-553.35952589,0.00049589,120]
[354787742,1740695440622,-500.0,0.00049589,120]
[354787745,1740695440631,-500.0,0.00049589,120]
[354787747,1740695440641,-288.03,0.00049589,120]
[354787750,1740695440651,-500.0,0.00049589,120]
[354787752,1740695440660,-500.0,0.00049589,120]
[354787754,1740695440669,-313.83,0.00049589,120]
[354787756,1740695440679,-500.0,0.00049589,120]
[354787758,1740695440688,-500.0,0.00049589,120]
[354787760,1740695440697,-500.0,0.00049589,120]
[354787762,1740695440706,-500.0,0.00049589,120]
[354787763,1740695440715,-500.0,0.00049589,120]
[354787764,1740695440725,-163.41,0.00049589,120]
[354787765,1740695440735,-500.0,0.00049589,120]
[354787767,1740695440744,-500.0,0.00049589,120]
[354787768,1740695440753,-500.0,0.00049589,120]
[354787769,1740695440763,-500.0,0.00049589,120]
[354787770,1740695440772,-628.81,0.00049589,120]
[354787771,1740695440782,-500.0,0.00049589,120]
[354787772,1740695440791,-500.0,0.00049589,120]
[354787773,1740695440800,-387.14,0.00049589,120]
[354787774,1740695440810,-500.0,0.00049589,120]
[354787775,1740695440819,-500.0,0.00049589,120]
[354787776,1740695440828,-500.0,0.00049589,120]
[354787777,1740695440838,-500.0,0.00049589,120]
[354787778,1740695440847,-459.42573492,0.00049589,120]
[354787779,1740695440856,-606.25,0.00049589,120]
[354787780,1740695440865,-500.0,0.00049589,120]
[354787781,1740695440875,-316.26,0.00049589,120]
[354787782,1740695440990,-500.0,0.00049589,120]
[354787783,1740695441000,-634.18,0.00049589,120]
[354787784,1740695441009,-500.0,0.00049589,120]
[354787785,1740695441019,-500.0,0.00049589,120]
[354787786,1740695441028,-500.0,0.00049589,120]
[354787787,1740695441037,-241.33,0.00049589,120]
[354787788,1740695441047,-500.0,0.00049589,120]
[354787789,1740695441056,-243.22,0.00049589,120]
[354787790,1740695441066,-500.0,0.00049589,120]
[354787791,1740695441075,-500.0,0.00049589,120]
[354787792,1740695441084,-500.0,0.00049589,120]
[354787793,1740695441094,-500.0,0.00049589,6]
[354787794,1740695441103,-500.0,0.00049589,120]
[354787795,1740695441112,-500.0,0.00049863,120]
[354787796,1740695441122,-500.0,0.00049863,120]
[354787797,1740695441131,-500.0,0.00049863,120]
[354787798,1740695441142,-500.0,0.00049863,120]
[354787799,1740695441152,-325.46,0.00049863,120]
[354787800,1740695441161,-500.0,0.00049863,6]
[354787801,1740695441171,-4998.88215612,0.0005,120]
[354787802,1740695441181,-500.0,0.00050136,120]
[354787803,1740695441190,-500.0,0.00050136,6]
[354787804,1740695441199,-1509.0,0.00050273,15]
[354787805,1740695441208,-296.38,0.0005041,120]
[354787806,1740695441217,-500.0,0.0005041,6]
[354787807,1740695441226,-500.0,0.00050684,6]
[354787808,1740695441235,-500.0,0.00050958,6]
[354787809,1740695441243,-20035.90270861,0.00051,120]
[354787810,1740695441252,-244.39,0.00051,30]
[354787811,1740695441261,-39260.25,0.00051,30]
[354787812,1740695441271,-557.15,0.00051,30]
[354787813,1740695441280,-1597.87,0.00051,30]
[354787814,1740695441289,-904.31,0.00051,30]
[354787815,1740695441299,-418.0,0.00051232,6]
[354787816,1740695441308,-151.0,0.00051843,30]
[354787817,1740695441317,-150.0,0.00051858,2]
[354787818,1740695441327,-150.0,0.00051858,2]
[354787819,1740695441336,-697.93,0.000524,51]
[354787820,1740695441346,-697.93,0.000524,51]
[354787821,1740695441356,-697.93,0.000524,51]
[354787822,1740695441365,-697.93,0.000524,51]
[354787823,1740695441375,-697.93,0.000524,51]
[354787824,1740695441385,-697.93,0.000524,51]
[354787825,1740695441395,-697.93,0.000524,51]
[354787826,1740695441404,-697.93,0.000524,51]
[354787827,1740695441413,-697.93,0.000524,51]
[354787828,1740695441423,-697.93,0.000524,51]
[354787829,1740695441432,-697.93,0.000524,51]
[354787830,1740695441441,-697.93,0.000524,51]
[354787831,1740695441450,-1107.11,0.000526,2]
[354787832,1740695441459,-157.99,0.000526,30]
[354787833,1740695441469,-179.55112219,0.00053321,47]
[354787834,1740695441482,-594.58362422,0.00053341,2]
[354787835,1740695441491,-500.0,0.00053532,120]
[354787836,1740695441501,-1411.0,0.00053533,15]
[354787837,1740695441510,-500.0,0.00053712,28]
[354787838,1740695441521,-500.0,0.00054794,120]
[354787839,1740695441530,-342.31,0.00054794,120]
[354787840,1740695441540,-150.0,0.00054858,2]
[354787841,1740695441549,-150.0,0.00054858,2]
[354787842,1740695441559,-4998.88215612,0.00055,120]
[354787843,1740695441569,-9455.4,0.00055068,120]
[354787844,1740695441578,-500.0,0.00055415,7]
[354787845,1740695441587,-2200.0,0.00056719,120]
[354787846,1740695441596,-150.0,0.00056719,30]
[354787847,1740695441606,-594.58362422,0.00057194,2]
[354787848,1740695441615,-150.0,0.00057858,2]
[354787849,1740695441625,-150.0,0.00057858,2]
[354787850,1740695441634,-500.0,0.00059999,120]
[354787851,1740695441644,-4998.88215612,0.0006,120]
[354787852,1740695441653,-500.0,0.00060269,120]
[354787853,1740695441662,-500.0,0.00060269,120]
[354787854,1740695441672,-9455.4,0.00060547,120]
[354787855,1740695441682,-150.0,0.00060858,2]
[354787856,1740695441691,-150.0,0.00060858,2]
[354787857,1740695441700,-1000.0,0.00060894,7]
[354787858,1740695441710,-594.58362422,0.00061047,2]
[354787859,1740695441719,-557.15,0.000612,30]
[354787860,1740695441728,-1597.87,0.000612,30]
[354787861,1740695441737,-904.31,0.000612,30]
[354787862,1740695441746,-800.0,0.00062542,120]
[354787863,1740695441755,-150.0,0.00063858,2]
[354787864,1740695441765,-150.0,0.00063858,2]
[354787865,1740695441774,-244.39,0.000639,30]
[354787866,1740695441784,-39260.25,0.000639,30]
[354787867,1740695441793,-22658.08559333,0.00064,120]
[354787868,1740695441802,-105835.2249809,0.00064,120]
[354787869,1740695441811,-500.0,0.00064873,14]
[354787870,1740695441820,-500.0,0.00064873,14]
[354787871,1740695441829,-355.99970542,0.00064899,120]
[354787872,1740695441839,-425.29704238,0.00064899,31]
[354787873,1740695441848,-142813.52078877,0.000649,2]
[354787874,1740695441907,-11000.16623171,0.000649,2]
[354787875,1740695441919,-2727.33763787,0.000649,2]
[354787887,1740695447095,-500.0,0.00049587,120]
[354787888,1740695447105,-213.95819155,0.00049587,120]
[354787889,1740695447114,-1486.27,0.0006489,10]
[354787890,1740695447124,-14067.19885146,0.000649,2]
[354787891,1740696083221,-150.0,0.00032877,2]
[354787892,1740696086825,-84.010619,0.00032877,2]
[354787893,1740696236845,-550.0,0.00042079,5]
[354787894,1740696236869,-24900.0,0.0004208,2]
[354787895,1740696236892,-3423.89036312,0.00044687,120]
[354787896,1740696236918,-770.0,0.00044787,5]
[354787897,1740696236944,-211.34092594,0.000449,10]
[354787898,1740696236968,-160.0,0.00047399,2]
[354787899,1740696236993,-1077.0,0.00047669,5]
[354787900,1740696237017,-500.0,0.00049315,120]
[354787901,1740696237040,-500.0,0.00049315,120]
[354787902,1740696237065,-500.0,0.00049315,120]
[354787903,1740696237086,-500.0,0.00049315,120]
[354787904,1740696237107,-500.0,0.00049315,120]
[354787905,1740696237129,-500.0,0.00049315,120]
[354787906,1740696237151,-500.0,0.00049315,120]
[354787907,1740696237173,-500.0,0.00049315,120]
[354787908,1740696237195,-500.0,0.00049315,120]
[354787909,1740696237217,-500.0,0.00049315,120]
[354787910,1740696237239,-505.6646325,0.00049315,120]
[354787911,1740696237261,-500.0,0.00049315,120]
[354787912,1740696237283,-222.87749792,0.00049315,120]
[354787913,1740696237304,-500.0,0.00049315,120]
[354787914,1740696237326,-500.0,0.00049315,120]
[354787915,1740696237348,-500.0,0.00049315,120]
[354787916,1740696237370,-500.0,0.00049315,120]
[354787917,1740696237393,-548.3027548,0.00049315,120]
[354787918,1740696237414,-365.5501119,0.00049315,120]
[354787919,1740696237436,-500.0,0.00049315,120]
[354787920,1740696237458,-500.0,0.00049315,120]
[354787921,1740696237480,-500.0,0.00049315,120]
[354787922,1740696237640,-500.0,0.00049315,120]
[354787923,1740696237664,-500.0,0.00049315,120]
[354787924,1740696237687,-500.0,0.00049315,120]
[354787925,1740696237710,-500.0,0.00049315,120]
[354787926,1740696237733,-500.0,0.00049315,120]
[354787927,1740696237766,-500.0,0.00049315,120]
[354787928,1740696237790,-500.0,0.00049315,120]
[354787929,1740696237813,-500.0,0.00049315,120]
[354787930,1740696237836,-463.94485795,0.00049315,120]
[354787931,1740696237858,-500.0,0.00049315,120]
[354787932,1740696237880,-200.0,0.00049315,7]
[354787933,1740696237904,-500.0,0.00049315,120]
[354787934,1740696237926,-454.00406083,0.00049315,120]
[354787935,1740696237949,-500.0,0.00049315,120]
[354787936,1740696237971,-349.66117496,0.00049315,2]
[354787937,1740696237994,-500.0,0.00049315,120]
[354787938,1740696238018,-500.0,0.00049315,120]
[354787939,1740696238040,-267.19490855,0.00049315,120]
[354787940,1740696238064,-500.0,0.00049315,120]
[354787941,1740696238088,-500.0,0.00049315,45]
[354787942,1740696238112,-500.0,0.00049315,120]
[354787943,1740696238134,-500.0,0.00049315,120]
[354787944,1740696238157,-500.0,0.00049315,120]
[354787945,1740696238179,-500.0,0.00049315,120]
[354787946,1740696238203,-500.0,0.00049315,120]
[354787947,1740696238225,-500.0,0.00049315,120]
[354787948,1740696238247,-500.0,0.00049315,120]
[354787949,1740696238269,-500.0,0.00049315,120]
[354787950,1740696238292,-500.0,0.00049315,120]
[354787951,1740696238314,-501.05808936,0.00049315,120]
[354787952,1740696238337,-500.0,0.00049315,120]
[354787953,1740696238360,-522.90018622,0.00049315,120]
[354787954,1740696238383,-500.0,0.00049315,120]
[354787955,1740696238409,-500.0,0.00049315,120]
[354787956,1740696238430,-500.63904926,0.00049315,120]
[354787957,1740696238452,-500.0,0.00049315,120]
[354787958,1740696238474,-500.0,0.00049315,120]
[354787959,1740696238498,-500.0,0.00049315,120]
[354787960,1740696238520,-500.0,0.00049315,120]
[354787961,1740696238542,-500.0,0.00049315,120]
[354787962,1740696238565,-325.46,0.00049315,120]
[354787963,1740696238588,-170.16,0.00049315,120]
[354787964,1740696238610,-507.54,0.00049315,120]
[354787965,1740696238633,-503.50451892,0.00049315,120]
[354787966,1740696238656,-500.0,0.00049315,120]
[354787967,1740696238680,-500.0,0.00049315,120]
[354787968,1740696238702,-288.03,0.00049315,120]
[354787969,1740696238725,-500.0,0.00049315,120]
[354787970,1740696238749,-500.0,0.00049315,120]
[354787971,1740696238774,-500.0,0.00049315,120]
[354787972,1740696238797,-500.0,0.00049315,120]
[354787973,1740696238820,-313.83,0.00049315,120]
[354787974,1740696238844,-500.0,0.00049315,120]
[354787975,1740696238867,-500.0,0.00049315,120]
[354787976,1740696238894,-500.0,0.00049315,120]
[354787977,1740696238917,-500.0,0.00049315,120]
[354787978,1740696238941,-500.0,0.00049315,120]
[354787979,1740696238964,-500.0,0.00049315,120]
[354787980,1740696238987,-500.0,0.00049315,6]
[354787981,1740696239011,-500.0,0.00049315,120]
[354787982,1740696239035,-163.41,0.00049315,120]
[354787983,1740696239058,-500.0,0.00049315,120]
[354787984,1740696239081,-500.0,0.00049315,120]
[354787985,1740696239102,-500.0,0.00049315,120]
[354787986,1740696239125,-500.0,0.00049315,120]
[354787987,1740696239148,-500.0,0.00049315,120]
[354787988,1740696239170,-628.81,0.00049315,120]
[354787989,1740696239193,-500.0,0.00049315,120]
[354787990,1740696239217,-387.14,0.00049315,120]
[354787991,1740696239239,-500.0,0.00049315,120]
[354787992,1740696239262,-243.22,0.00049315,120]
[354787993,1740696239286,-500.0,0.00049315,120]
[354787994,1740696239309,-500.0,0.00049315,120]
[354787995,1740696239332,-500.0,0.00049315,120]
[354787996,1740696239356,-6288.62159862,0.00049558,2]
[354787997,1740696239378,-592.75987409,0.0004956,2]
[354787998,1740696239402,-500.0,0.00049587,120]
[354787999,1740696239426,-500.0,0.00049589,120]
[354788000,1740696239450,-500.0,0.00049589,120]
[354788001,1740696239474,-500.0,0.00049589,120]
[354788002,1740696239499,-500.0,0.00049589,6]
[354788003,1740696239522,-500.0,0.00049863,6]
[354788004,1740696243099,500.0,0.00049315,120]
[354788018,1740696611145,-206.8997188,0.00045266,2]
[354788019,1740696611169,-221.172353,0.00045314,2]
[354788020,1740696611193,-2739.11229052,0.00049215,120]
[354788021,1740696611217,-523.0,0.00049314,5]
[354788022,1740696611240,-151.96,0.00049315,120]
[354788023,1740696611263,-500.0,0.00049315,120]
[354788024,1740696611288,-500.0,0.00049315,120]
[354788025,1740696611312,-500.0,0.00049315,120]
[354788026,1740696611470,-500.0,0.00049315,30]
[354788027,1740696611494,-500.0,0.00049315,120]
[354788028,1740696611518,-500.0,0.00049315,120]
[354788029,1740696611542,-500.0,0.00049315,120]
[354788030,1740696611565,-500.0,0.00049315,120]
[354788031,1740696611589,-500.0,0.00049315,120]
[354788032,1740696611614,-500.0,0.00049315,120]
[354788033,1740696611641,-500.0,0.00049315,120]
[354788034,1740696611668,-500.0,0.00049315,120]
[354788035,1740696611690,-500.0,0.00049315,120]
[354788036,1740696611714,-500.0,0.00049315,120]
[354788037,1740696611737,-501.64705754,0.00049315,120]
[354788038,1740696611762,-1000.0,0.00049315,60]
[354788039,1740696611786,-459.42573492,0.00049315,120]
[354788040,1740696611808,-500.0,0.00049315,120]
[354788041,1740696611832,-500.0,0.00049315,120]
[354788042,1740696611858,-606.25,0.00049315,120]
[354788043,1740696611881,-500.0,0.00049315,120]
[354788044,1740696611904,-500.0,0.00049315,120]
[354788045,1740696611932,-500.0,0.00049315,120]
[354788046,1740696611956,-500.0,0.00049315,120]
[354788047,1740696611980,-500.0,0.00049315,120]
[354788048,1740696612002,-500.0,0.00049315,120]
[354788049,1740696612026,-634.18,0.00049315,120]
[354788050,1740696612050,-500.0,0.00049315,120]
[354788051,1740696612072,-500.0,0.00049315,120]
[354788052,1740696612095,-553.35952589,0.00049315,120]
[354788053,1740696612118,-500.0,0.00049315,120]
[354788054,1740696612142,-500.0,0.00049315,120]
[354788055,1740696612167,-501.35752607,0.00049315,120]
[354788056,1740696612194,-500.0,0.00049315,120]
[354788057,1740696612220,-500.0,0.00049315,120]
[354788058,1740696612245,-500.0,0.00049315,120]
[354788059,1740696612268,-500.0,0.00049315,120]
[354788060,1740696612292,-500.0,0.00049315,120]
[354788061,1740696612315,-500.0,0.00049315,120]
[354788062,1740696612340,-500.0,0.00049315,120]
[354788063,1740696612366,-500.0,0.00049315,120]
[354788064,1740696612391,-566.24,0.00049315,120]
[354788065,1740696612415,-500.0,0.00049315,120]
[354788066,1740696612439,-500.0,0.00049315,6]
[354788067,1740696612463,-500.0,0.00049589,120]
[354788068,1740696612486,-515.99230837,0.00049589,120]
[354788069,1740696612511,-552.15652929,0.00049589,120]
[354788070,1740696612534,-500.0,0.00049589,120]
[354788071,1740696612559,-500.0,0.00049589,120]
[354788072,1740696612583,-241.33,0.00049589,120]
[354788073,1740696612609,-500.0,0.00049589,6]
[354788074,1740696612634,-500.0,0.00049863,120]
[354788075,1740696612659,-500.0,0.00049863,6]
[354788076,1740696612684,-211.34092594,0.000499,11]
[354788078,1740696621653,500.0,0.00049315,120]
[354788079,1740696623885,500.0,0.00049315,120]
[354788080,1740696624129,296.38,0.00049589,120]
[354788081,1740696630403,-1238.56,0.0004999,10]
[354788082,1740696630427,-301503.0,0.0005,120]
[354788083,1740696630450,-543.37,0.0005,30]
[354788091,1740696632058,-418.0,0.00050136,6]
[354788092,1740696632068,-455.31173304,0.00050999,120]
[354788093,1740696632077,-500.0,0.00050999,120]
[354788094,1740696632087,-500.0,0.00050999,120]
[354788095,1740696632096,-500.0,0.00050999,120]
[354788096,1740696632106,-500.0,0.00050999,120]
[354788097,1740696632116,-298.4884716,0.00050999,120]
[354788098,1740696632125,-193.05,0.00050999,120]
[354788099,1740696632135,-500.0,0.00050999,120]
[354788100,1740696632144,-500.0,0.00050999,120]
[354788101,1740696632154,-500.0,0.00050999,120]
[354788102,1740696632164,-500.0,0.00050999,120]
[354788103,1740696632173,-559.59390385,0.00050999,120]
[354788104,1740696632183,-500.0,0.00050999,120]
[354788105,1740696632193,-500.0,0.00050999,120]
[354788106,1740696632202,-316.26,0.00050999,120]
[354788107,1740696632212,-500.0,0.00050999,120]
[354788108,1740696632222,-500.0,0.00050999,120]
[354788109,1740696632231,-500.0,0.00050999,120]
[354788110,1740696632241,-500.0,0.00050999,120]
[354788111,1740696632250,-500.0,0.00050999,120]
[354788112,1740696632260,-500.0,0.00050999,120]
[354788113,1740696632269,-500.0,0.00050999,120]
[354788114,1740696632279,-500.0,0.00050999,120]
[354788115,1740696632289,-20035.90270861,0.00051,120]
[354788116,1740696632298,-387.20735709,0.00051172,2]
[354788117,1740696632309,-500.0,0.00051273,120]
[354788118,1740696632319,-500.0,0.00051273,120]
[354788119,1740696632328,-151.32720976,0.00051745,14]
[354788120,1740696632338,-24904.60842683,0.00051855,14]
[354788121,1740696632347,-151.0,0.00051855,30]
[354788122,1740696632357,-500.0,0.00052399,120]
[354788123,1740696632367,-697.93,0.000524,51]
[354788124,1740696632377,-697.93,0.000524,51]
[354788125,1740696632386,-697.93,0.000524,51]
[354788126,1740696632395,-697.93,0.000524,51]
[354788127,1740696632405,-697.93,0.000524,51]
[354788128,1740696632414,-697.93,0.000524,51]
[354788129,1740696632423,-697.93,0.000524,51]
[354788130,1740696632432,-697.93,0.000524,51]
[354788131,1740696632442,-697.93,0.000524,51]
[354788132,1740696632451,-697.93,0.000524,51]
[354788133,1740696632461,-697.93,0.000524,51]
[354788134,1740696632470,-697.93,0.000524,51]
[354788135,1740696632479,-166.1,0.00052403,30]
[354788136,1740696632489,-1107.11,0.000526,2]
[354788137,1740696632499,-9455.4,0.00052601,120]
[354788138,1740696632508,-500.0,0.00052602,120]
[354788139,1740696632518,-500.0,0.00052876,120]
[354788140,1740696632528,-182.71,0.00052951,30]
[354788141,1740696632538,-500.0,0.0005315,120]
[354788142,1740696632547,-179.55112219,0.00053321,47]
[354788143,1740696632557,-150.0,0.00053389,2]
[354788144,1740696632567,-150.0,0.00053389,2]
[354788145,1740696632577,-500.0,0.00053424,120]
[354788146,1740696632591,-200.981,0.00053499,30]
[354788147,1740696632601,-500.0,0.00053698,120]
[354788148,1740696632612,-500.0,0.00053972,120]
[354788149,1740696632622,-252.019,0.00054047,30]
[354788150,1740696632632,-500.0,0.00054246,120]
[354788151,1740696632642,-500.0,0.0005452,120]
[354788152,1740696632651,-500.0,0.00054793,120]
[354788153,1740696632661,-500.0,0.00054793,120]
[354788154,1740696632670,-500.0,0.00054793,120]
[354788155,1740696632679,-607.38225215,0.00054793,120]
[354788156,1740696632689,-500.0,0.00054793,120]
[354788157,1740696632699,-804.53331051,0.00054793,2]
[354788158,1740696632708,-500.0,0.00054793,120]
[354788159,1740696632718,-804.53331051,0.00054793,2]
[354788160,1740696632727,-500.0,0.00054793,120]
[354788161,1740696632737,-804.53331051,0.00054793,2]
[354788162,1740696632747,-500.0,0.00054793,120]
[354788163,1740696632756,-500.0,0.00054793,120]
[354788164,1740696632765,-804.53331051,0.00054793,2]
[354788165,1740696632775,-500.0,0.00054793,120]
[354788166,1740696632785,-500.0,0.00054793,120]
[354788167,1740696632794,-500.0,0.00054793,120]
[354788168,1740696632804,-500.0,0.00054793,120]
[354788169,1740696632814,-500.0,0.00054793,120]
[354788170,1740696632823,-500.0,0.00054793,120]
[354788171,1740696632833,-500.0,0.00054793,120]
[354788172,1740696632842,-804.53331051,0.00054793,2]
[354788173,1740696632852,-500.0,0.00054793,120]
[354788174,1740696632862,-500.0,0.00054793,120]
[354788175,1740696632875,-804.53331051,0.00054793,2]
[354788176,1740696632885,-500.0,0.00054793,120]
[354788177,1740696632894,-804.53331051,0.00054793,2]
[354788178,1740696632904,-500.0,0.00054793,120]